bitfinex-derivatives/quotes_BTCF0:USTF0_20250509
["timestamp","ask_amount","ask_price","bid_price","bid_amount"]
[1746822378268,0.2310258,103410.0,103400.0,2.93373726]
[1746822382979,0.2310258,103410.0,103400.0,2.7147794]
[1746822383184,0.2310258,103410.0,103400.0,2.93373726]
[1746822384679,0.2640258,103410.0,103400.0,2.93373726]
[1746822393089,0.2640258,103410.0,103400.0,2.57293726]
[1746822393278,0.2640258,103410.0,103400.0,2.93373726]
[1746822393987,0.2640258,103410.0,103400.0,2.93399262]
[1746822399985,0.2006258,103410.0,103400.0,2.93399262]
[1746822400186,0.00725,103410.0,103400.0,2.94890457]
[1746822401190,0.2006258,103410.0,103400.0,2.94892161]
[1746822401384,0.03865,103410.0,103400.0,2.94892161]
[1746822402085,0.2320258,103410.0,103400.0,2.94892161]
[1746822402990,0.2320258,103410.0,103400.0,2.94892046]
[1746822406697,0.2320258,103410.0,103400.0,2.94891943]
[1746822407784,0.2320258,103410.0,103400.0,2.94811943]
[1746822407989,0.2960258,103410.0,103400.0,3.07939943]
[1746822409595,0.2960258,103410.0,103400.0,1.57939943]
[1746822411496,0.2960258,103410.0,103400.0,1.36018621]
[1746822411690,0.2960258,103410.0,103400.0,1.57939943]
[1746822412097,0.2960258,103410.0,103400.0,1.5793999]
[1746822413896,0.2960258,103410.0,103400.0,1.57939738]
[1746822414197,0.4560258,103410.0,103400.0,1.57939738]
[1746822415000,0.4560258,103410.0,103400.0,1.57939742]
[1746822415299,0.2960258,103410.0,103400.0,1.57939742]
[1746822415599,0.2960258,103410.0,103400.0,3.07939742]
[1746822415797,0.2960258,103410.0,103400.0,3.07939743]
[1746822417098,0.4560258,103410.0,103400.0,3.07939743]
[1746822420399,0.4560258,103410.0,103400.0,2.94811743]
[1746822420601,0.4560258,103410.0,103400.0,2.96955082]
[1746822420894,0.4560258,103410.0,103400.0,1.00278421]
[1746822421100,0.92643241,103410.0,103400.0,0.44858971]
[1746822421494,0.8168258,103410.0,103400.0,0.43408971]
[1746822421800,0.8168258,103410.0,103400.0,0.62748421]
[1746822422001,0.8168258,103410.0,103400.0,0.33738259]
[1746822422500,0.8168258,103410.0,103400.0,0.53076982]
[1746822423392,0.8168258,103410.0,103400.0,0.01245778]
[1746822423393,1.78546041,103410.0,103400.0,0.01245778]
[1746822425601,1.53546041,103410.0,103400.0,0.01245778]
[1746822425798,1.78546041,103410.0,103400.0,0.01245778]
[1746822427106,1.53546041,103410.0,103400.0,0.01245778]
[1746822427403,1.53746041,103410.0,103400.0,0.01245778]
[1746822427605,1.53946041,103410.0,103400.0,0.01245778]
[1746822432707,1.44275241,103410.0,103400.0,0.01245778]
[1746822432909,1.53946041,103410.0,103400.0,0.01245778]
[1746822435515,1.44275241,103410.0,103400.0,0.01245778]
[1746822440511,1.53946041,103410.0,103400.0,0.01245778]
[1746822441611,1.44275241,103410.0,103400.0,0.01245778]
[1746822441813,1.53946041,103410.0,103400.0,0.01245778]
[1746822444022,1.53946041,103410.0,103400.0,0.04485778]
[1746822445125,1.44275241,103410.0,103400.0,0.04485778]
[1746822445316,1.53946041,103410.0,103400.0,0.04485778]
[1746822447121,1.37946041,103410.0,103400.0,0.04485778]
[1746822448225,1.53946041,103410.0,103400.0,0.04485778]
[1746822449124,1.37946041,103410.0,103400.0,0.04485778]
[1746822449623,1.28275241,103410.0,103400.0,0.04485778]
[1746822453427,1.64355241,103410.0,103400.0,0.04485778]
[1746822453629,1.64355241,103410.0,103400.0,0.07515778]
[1746822454426,0.92195241,103410.0,103400.0,0.07515778]
[1746822454629,1.64355241,103410.0,103400.0,0.07515778]
[1746822469735,0.92195241,103410.0,103400.0,0.07515778]
[1746822470032,1.64355241,103410.0,103400.0,0.07515778]
[1746822492350,0.8123458,103410.0,103400.0,0.07515778]
[1746822492554,1.64355241,103410.0,103400.0,0.07515778]
[1746822493049,0.92195241,103410.0,103400.0,0.07515778]
[1746822493253,1.64355241,103410.0,103400.0,0.07515778]
[1746822494449,0.92195241,103410.0,103400.0,0.07515778]
[1746822494649,1.64355241,103410.0,103400.0,0.07515778]
[1746822500453,0.92195241,103410.0,103400.0,0.07515778]
[1746822500641,1.64355241,103410.0,103400.0,0.07515778]
[1746822502557,1.5339458,103410.0,103400.0,0.07515778]
[1746822502747,1.64355241,103410.0,103400.0,0.07515778]
[1746822505052,0.92195241,103410.0,103400.0,0.07515778]
[1746822505355,1.64355241,103410.0,103400.0,0.07515778]
[1746822513358,1.64355241,103410.0,103400.0,0.04485778]
[1746822517362,1.64355241,103410.0,103400.0,0.01245778]
[1746822517758,1.75315902,103410.0,103400.0,0.01245778]
[1746822518262,1.91315902,103410.0,103400.0,0.01245778]
[1746822519064,1.91115902,103410.0,103400.0,0.01245778]
[1746822519265,1.91415902,103410.0,103400.0,0.01245778]
[1746822519764,1.80455241,103410.0,103400.0,0.01245778]
[1746822520064,1.80555241,103410.0,103400.0,0.01245778]
[1746822521163,1.64555241,103410.0,103400.0,0.01245778]
[1746822528363,1.64555241,103410.0,103400.0,0.04245778]
[1746822531664,1.5359458,103410.0,103400.0,0.04245778]
[1746822531964,1.64555241,103410.0,103400.0,0.04245778]
[1746822540591,1.38323241,103410.0,103400.0,0.04245778]
[1746822540783,1.64063241,103410.0,103400.0,0.04245778]
[1746822542792,1.64063241,103410.0,103400.0,0.10455778]
[1746822551889,1.64063241,103410.0,103400.0,0.07415778]
[1746822555390,1.75023902,103410.0,103400.0,0.07415778]
[1746822555591,1.64063241,103410.0,103400.0,0.07415778]
[1746822556200,1.80063241,103410.0,103400.0,0.07415778]
[1746822559204,1.64063241,103410.0,103400.0,0.07415778]
[1746822566603,1.64063241,103410.0,103400.0,0.0617]
[1746822566910,1.5310258,103410.0,103400.0,0.0617]
[1746822567094,1.64063241,103410.0,103400.0,0.0617]
[1746822576505,0.91903241,103410.0,103400.0,0.0617]
[1746822576710,1.64063241,103410.0,103400.0,0.0617]
[1746822579009,0.91903241,103410.0,103400.0,0.0617]
[1746822579207,1.64063241,103410.0,103400.0,0.0617]
[1746822584913,0.91903241,103410.0,103400.0,0.0617]
[1746822585119,1.64063241,103410.0,103400.0,0.0617]
[1746822594123,1.64063241,103410.0,103400.0,0.2217]
[1746822596125,1.64063241,103410.0,103400.0,0.0617]
[1746822620140,1.64063241,103410.0,103400.0,0.2217]
[1746822621241,1.64063241,103410.0,103400.0,0.0617]
[1746822622438,1.27983241,103410.0,103400.0,0.0617]
[1746822622646,1.64063241,103410.0,103400.0,0.0617]
[1746822624943,0.1933945,103400.0,103390.0,0.0315]
[1746822625133,1.19990772,103400.0,103390.0,0.16]
[1746822625336,1.19990772,103400.0,103390.0,0.17155107]
[1746822626137,1.19990772,103400.0,103390.0,0.01155107]
[1746822626345,1.19990772,103400.0,103390.0,0.01255107]
[1746822628241,1.19990772,103400.0,103390.0,0.04565107]
[1746822629846,1.20715772,103400.0,103390.0,0.04565107]
[1746822630549,1.20715772,103400.0,103390.0,0.01255107]
[1746822630950,1.20715772,103400.0,103390.0,0.04345107]
[1746822631348,1.20715772,103400.0,103390.0,0.0319]
[1746822636147,1.20715772,103400.0,103390.0,0.001]
[1746822636855,1.56795772,103400.0,103390.0,0.001]
[1746822637953,1.67756433,103400.0,103390.0,0.001]
[1746822638156,1.67756433,103400.0,103370.0,0.092]
[1746822638157,0.1934319,103380.0,103370.0,0.092]
[1746822638454,1.52131851,103380.0,103370.0,0.10356144]
[1746822638650,1.61651851,103380.0,103370.0,0.10356144]
[1746822639548,1.61651851,103380.0,103370.0,0.10656144]
[1746822639855,1.61651851,103380.0,103370.0,0.10856144]
[1746822641056,1.4757119,103380.0,103370.0,0.10856144]
[1746822641259,1.4757119,103380.0,103370.0,0.26856144]
[1746822642255,1.4757119,103380.0,103370.0,0.10856144]
[1746822642860,1.48527576,103380.0,103370.0,0.10856144]
[1746822643759,1.59488237,103380.0,103370.0,0.10856144]
[1746822647351,1.62788237,103380.0,103370.0,0.10856144]
[1746822649461,1.62788237,103380.0,103370.0,0.10556144]
[1746822649662,1.62788237,103380.0,103370.0,0.10656144]
[1746822649852,1.62988237,103380.0,103370.0,0.10456144]
[1746822651259,1.62788237,103380.0,103370.0,0.10456144]
[1746822651562,1.25788237,103380.0,103370.0,0.10456144]
[1746822651764,1.52827576,103380.0,103370.0,0.10456144]
[1746822651960,1.63788237,103380.0,103370.0,0.10456144]
[1746822652159,1.63788237,103380.0,103370.0,0.26456144]
[1746822653061,1.63788237,103380.0,103370.0,0.10456144]
[1746822654262,1.63788237,103380.0,103370.0,0.26456144]
[1746822655264,1.63788237,103380.0,103370.0,0.10456144]
[1746822657064,1.1387119,103380.0,103370.0,0.10456144]
[1746822657269,1.2687119,103380.0,103370.0,0.10456144]
[1746822658168,1.2687119,103380.0,103370.0,0.26456144]
[1746822661266,1.2687119,103380.0,103370.0,0.10456144]
[1746822661768,1.27852215,103380.0,103370.0,0.10456144]
[1746822663267,1.27852215,103380.0,103370.0,0.26456144]
[1746822663474,1.60812876,103380.0,103370.0,0.17256144]
[1746822664171,1.60812876,103380.0,103370.0,0.01256144]
[1746822665975,1.72498537,103380.0,103370.0,0.01256144]
[1746822666265,1.88498537,103380.0,103370.0,0.01256144]
[1746822667274,1.72498537,103380.0,103370.0,0.01256144]
[1746822668572,0.1934694,103360.0,103350.0,0.00396691]
[1746822668765,0.79019601,103360.0,103350.0,0.01861398]
[1746822668962,0.88719601,103360.0,103350.0,0.01861398]
[1746822669169,1.50799601,103360.0,103350.0,0.01861492]
[1746822669368,1.50799601,103360.0,103350.0,0.00396691]
[1746822669773,1.50899601,103360.0,103350.0,0.00796691]
[1746822669968,1.3993894,103360.0,103350.0,0.00796691]
[1746822670178,1.3993894,103360.0,103350.0,0.01196691]
[1746822670179,1.61960262,103360.0,103350.0,0.01196691]
[1746822671463,1.50999601,103360.0,103350.0,0.01196691]
[1746822671665,0.1934881,103350.0,103340.0,0.14737924]
[1746822671863,1.0730081,103350.0,103340.0,0.14737924]
[1746822672274,0.87952,103350.0,103330.0,0.19650565]
[1746822672579,0.7730868,103340.0,103330.0,0.19650565]
[1746822672772,1.25269341,103340.0,103330.0,0.19650565]
[1746822672971,1.1430868,103340.0,103330.0,0.19650565]
[1746822673278,1.41269341,103340.0,103330.0,0.19650565]
[1746822673480,1.41269341,103340.0,103330.0,0.20150565]
[1746822673971,1.41369341,103340.0,103330.0,0.20650565]
[1746822674171,1.1440868,103340.0,103330.0,0.01]
[1746822674371,1.25369341,103340.0,103330.0,0.01]
[1746822674874,1.25369341,103340.0,103330.0,0.005]
[1746822675075,1.25469341,103340.0,103330.0,0.17]
[1746822675575,1.25669341,103340.0,103330.0,0.166]
[1746822676175,1.36630002,103340.0,103330.0,0.161]
[1746822676968,1.25669341,103340.0,103330.0,0.161]
[1746822680782,1.25669341,103340.0,103330.0,0.17225394]
[1746822685987,1.36630002,103340.0,103330.0,0.17225394]
[1746822687085,0.1935255,103330.0,103320.0,0.00396806]
[1746822687279,1.23501211,103330.0,103320.0,0.00396806]
[1746822687681,1.34461872,103330.0,103320.0,0.00396806]
[1746822687887,1.24488603,103330.0,103320.0,0.00396806]
[1746822688089,1.24588603,103330.0,103320.0,0.00596806]
[1746822688279,1.24588603,103330.0,103310.0,0.0641]
[1746822688280,0.1935443,103320.0,103310.0,0.0641]
[1746822688484,1.26413091,103320.0,103310.0,0.0311]
[1746822688680,1.1545243,103320.0,103310.0,0.0311]
[1746822688988,1.26413091,103320.0,103310.0,0.0626]
[1746822689185,1.26413091,103320.0,103310.0,0.2226]
[1746822689687,1.26513091,103320.0,103310.0,0.2256]
[1746822690290,1.1565243,103320.0,103310.0,0.2286]
[1746822690587,1.26613091,103320.0,103310.0,0.2286]
[1746822693189,1.1565243,103320.0,103310.0,0.2286]
[1746822693391,1.26613091,103320.0,103310.0,0.2286]
[1746822693897,1.0302443,103320.0,103310.0,0.2286]
[1746822694080,0.7340243,103320.0,103310.0,0.33820661]
[1746822694392,0.7140243,103320.0,103310.0,0.4786]
[1746822694586,0.7449243,103320.0,103310.0,0.2286]
[1746822696598,0.7449243,103320.0,103310.0,0.3886]
[1746822698093,0.7449243,103320.0,103310.0,0.3486]
[1746822698495,0.7521743,103320.0,103310.0,0.3486]
[1746822699198,0.7521743,103320.0,103310.0,0.35993888]
[1746822700796,0.7521743,103320.0,103310.0,0.23993888]
[1746822702795,0.7521743,103320.0,103310.0,0.27233888]
[1746822703701,0.8121743,103320.0,103310.0,0.27233888]
[1746822707505,0.8436743,103320.0,103310.0,0.27233888]
[1746822708804,1.1536743,103320.0,103310.0,0.27233888]
[1746822709302,1.26328091,103320.0,103310.0,0.27233888]
[1746822711505,0.89328091,103320.0,103310.0,0.27233888]
[1746822711706,1.08328091,103320.0,103310.0,0.27233888]
[1746822713209,1.08328091,103320.0,103310.0,0.17733888]
[1746822713408,1.19288752,103320.0,103310.0,0.17733888]
[1746822714108,1.35288752,103320.0,103310.0,0.01733888]
[1746822715208,1.08328091,103320.0,103310.0,0.01733888]
[1746822715812,0.9736743,103320.0,103310.0,0.01733888]
[1746822717110,0.9736743,103320.0,103310.0,0.17733888]
[1746822717812,1.08328091,103320.0,103310.0,0.17733888]
[1746822718813,1.08328091,103320.0,103310.0,0.20993888]
[1746822719608,1.08328091,103320.0,103310.0,0.24053888]
[1746822721103,1.08328091,103320.0,103310.0,0.08053888]
[1746822722108,1.08328091,103320.0,103310.0,0.24053888]
[1746822722504,1.08328091,103320.0,103310.0,0.27303888]
[1746822723109,1.08328091,103320.0,103310.0,0.11303888]
[1746822723307,1.08328091,103320.0,103310.0,0.08053888]
[1746822723713,1.23134821,103320.0,103310.0,0.08053888]
[1746822723909,1.1217416,103320.0,103310.0,0.08053888]
[1746822724114,1.1217416,103320.0,103310.0,0.24053888]
[1746822724314,1.23134821,103320.0,103310.0,0.24053888]
[1746822725519,1.23134821,103320.0,103310.0,0.24071045]
[1746822727731,1.04134821,103320.0,103310.0,0.24071045]
[1746822729620,1.04134821,103320.0,103310.0,0.20811045]
[1746822731414,0.9317416,103320.0,103310.0,0.20811045]
[1746822731723,0.89328091,103320.0,103310.0,0.17751045]
[1746822732314,1.00288752,103320.0,103310.0,0.17751045]
[1746822732514,1.31288752,103320.0,103310.0,0.17751045]
[1746822733123,1.0936743,103320.0,103310.0,0.01751045]
[1746822733323,1.31288752,103320.0,103310.0,0.01751045]
[1746822734517,1.20328091,103320.0,103310.0,0.01751045]
[1746822736223,1.20328091,103320.0,103310.0,0.17751045]
[1746822737013,1.31288752,103320.0,103310.0,0.17751045]
[1746822737826,1.43912752,103320.0,103310.0,0.17751045]
[1746822738124,1.43912752,103320.0,103310.0,0.01751045]
[1746822739124,1.43912752,103320.0,103310.0,0.17751045]
[1746822741122,1.43912752,103320.0,103310.0,0.01751045]
[1746822742131,1.64619139,103320.0,103310.0,0.17751045]
[1746822743228,1.64619139,103320.0,103310.0,0.01751045]
[1746822744425,1.42697817,103320.0,103310.0,0.01751045]
[1746822744622,1.64619139,103320.0,103310.0,0.01751045]
[1746822745324,1.42697817,103320.0,103310.0,0.01751045]
[1746822745523,1.53658478,103320.0,103310.0,0.01751045]
[1746822745926,1.32952091,103320.0,103310.0,0.01751045]
[1746822746227,1.43912752,103320.0,103310.0,0.17751045]
[1746822747127,1.43912752,103320.0,103310.0,0.01751045]
[1746822748220,1.43912752,103320.0,103310.0,0.05021045]
[1746822748423,1.43912752,103320.0,103310.0,0.01751045]
[1746822749330,1.18660752,103320.0,103310.0,0.01751045]
[1746822749635,1.44964752,103320.0,103310.0,0.01751045]
[1746822749830,1.59771482,103320.0,103310.0,0.01751045]
[1746822750129,1.59771482,103320.0,103310.0,0.17751045]
[1746822755628,1.50905407,103320.0,103310.0,0.17751045]
[1746822756225,1.50905407,103320.0,103310.0,0.01751045]
[1746822757335,1.28984085,103320.0,103310.0,0.01751045]
[1746822757533,1.50905407,103320.0,103310.0,0.01751045]
[1746822759334,1.50905407,103320.0,103310.0,0.17751045]
[1746822759735,1.44964752,103320.0,103310.0,0.17751045]
[1746822763341,1.44964752,103320.0,103310.0,0.01751045]
[1746822763741,1.65709387,103320.0,103310.0,0.01751045]
[1746822764239,1.65709387,103320.0,103310.0,0.20951045]
[1746822768241,1.65709387,103320.0,103310.0,0.24001045]
[1746822769137,1.39405387,103320.0,103310.0,0.27211045]
[1746822769331,1.11244065,103320.0,103310.0,0.38171706]
[1746822769536,1.06408065,103320.0,103310.0,0.56171706]
[1746822769946,1.06408065,103320.0,103310.0,0.45211045]
[1746822770347,1.06408065,103320.0,103310.0,0.27211045]
[1746822771146,1.11428071,103320.0,103310.0,0.27211045]
[1746822771538,1.0046741,103320.0,103310.0,0.27211045]
[1746822772149,0.7430341,103320.0,103310.0,0.27211045]
[1746822772339,0.8747141,103320.0,103310.0,0.27211045]
[1746822772942,0.98432071,103320.0,103310.0,0.27211045]
[1746822775350,0.8747141,103320.0,103310.0,0.27211045]
[1746822775648,0.98432071,103320.0,103310.0,0.27211045]
[1746822776752,0.98424071,103320.0,103310.0,0.27211045]
[1746822776953,0.98424071,103320.0,103310.0,0.27011045]
[1746822777153,0.98324071,103320.0,103310.0,0.26811045]
[1746822777855,0.9585162,103320.0,103310.0,0.26811045]
[1746822778259,0.71730959,103320.0,103310.0,0.26811045]
[1746822778447,0.68590959,103320.0,103310.0,0.68771706]
[1746822778755,0.32510959,103320.0,103310.0,0.68771706]
[1746822780055,0.32510959,103320.0,103310.0,0.68871706]
[1746822780259,0.32610959,103320.0,103310.0,0.69071706]
[1746822781455,0.2027943,103320.0,103310.0,0.69071706]
[1746822782157,0.2027943,103320.0,103310.0,0.58111045]
[1746822782455,0.2027943,103320.0,103310.0,0.69071706]
[1746822782656,0.2332943,103320.0,103310.0,0.69071706]
[1746822785249,0.2332943,103320.0,103310.0,0.88428006]
[1746822787358,0.2332943,103320.0,103310.0,0.77467345]
[1746822787758,0.2332943,103320.0,103310.0,0.69071706]
[1746822790060,0.2332943,103320.0,103310.0,0.58111045]
[1746822790252,0.2332943,103320.0,103310.0,0.69071706]
[1746822792461,0.2332943,103320.0,103310.0,0.88428006]
[1746822793860,0.5940943,103320.0,103310.0,0.88428006]
[1746822794063,0.5940943,103320.0,103310.0,0.69071706]
[1746822794656,0.6249943,103320.0,103310.0,0.69071706]
[1746822794968,0.6249943,103320.0,103310.0,0.88428006]
[1746822795858,0.6249943,103320.0,103310.0,0.69071706]
[1746822800061,0.6249943,103320.0,103310.0,0.88428006]
[1746822800769,0.6249943,103320.0,103310.0,0.69071706]
[1746822800967,0.6249943,103320.0,103310.0,0.88428006]
[1746822801154,0.6249943,103320.0,103310.0,0.89890357]
[1746822801769,0.74830959,103320.0,103310.0,0.89890357]
[1746822802273,0.74830959,103320.0,103310.0,0.70534057]
[1746822803168,0.74830959,103320.0,103310.0,0.705169]
[1746822803669,0.78020959,103320.0,103310.0,0.705169]
[1746822804167,0.78020959,103320.0,103310.0,0.70517049]
[1746822805469,0.78020959,103320.0,103310.0,0.70534206]
[1746822805866,0.78020959,103320.0,103310.0,0.89890506]
[1746822807373,0.78020959,103320.0,103310.0,0.59573545]
[1746822807565,0.8898162,103320.0,103310.0,0.78929845]
[1746822808361,0.78020959,103320.0,103310.0,0.78929845]
[1746822808972,0.78020959,103320.0,103310.0,0.89890506]
[1746822811273,0.78020959,103320.0,103310.0,0.89891812]
[1746822813775,0.78020959,103320.0,103310.0,0.70535512]
[1746822813976,0.78020959,103320.0,103310.0,0.59574851]
[1746822814171,0.78020959,103320.0,103310.0,0.78931151]
[1746822815978,0.6568943,103320.0,103310.0,0.78931151]
[1746822816677,0.6568943,103320.0,103310.0,0.78931118]
[1746822818672,0.6568943,103320.0,103310.0,0.59574818]
[1746822818876,0.6568943,103320.0,103310.0,0.78931118]
[1746822820281,0.6568943,103320.0,103310.0,0.78931064]
[1746822825075,0.6568943,103320.0,103310.0,0.88428006]
[1746822831182,0.6568943,103320.0,103310.0,0.89851505]
[1746822831381,0.78020959,103320.0,103310.0,0.89851505]
[1746822833285,0.78020959,103320.0,103310.0,0.78890844]
[1746822833584,0.78020959,103320.0,103310.0,0.89851505]
[1746822837787,0.6568943,103320.0,103310.0,0.89851505]
[1746822838087,0.6568943,103320.0,103310.0,0.78890844]
[1746822838288,0.6568943,103320.0,103310.0,0.78892178]
[1746822840490,0.6568943,103320.0,103310.0,0.89852839]
[1746822841494,0.78020959,103320.0,103310.0,0.89852839]
[1746822842193,0.78020959,103320.0,103310.0,0.78892178]
[1746822843490,0.78020959,103320.0,103310.0,0.59535878]
[1746822843691,0.78020959,103320.0,103310.0,0.78892178]
[1746822847199,0.78020959,103320.0,103310.0,0.78892378]
[1746822848608,0.6568943,103320.0,103310.0,0.78892378]
[1746822848794,0.6568943,103320.0,103310.0,0.89853039]
[1746822849206,0.6568943,103320.0,103310.0,0.78892378]
[1746822849403,0.6568943,103320.0,103310.0,0.89853039]
[1746822852108,0.6568943,103320.0,103310.0,0.78892378]
[1746822855112,0.6568943,103320.0,103310.0,0.62892378]
[1746822856112,0.6568943,103320.0,103310.0,0.77404773]
[1746822856303,0.6568943,103320.0,103310.0,0.5953595]
[1746822856503,0.6568943,103320.0,103310.0,0.7889225]
[1746822857914,0.6568943,103320.0,103310.0,0.78892261]
[1746822858209,0.6568943,103320.0,103310.0,0.78892275]
[1746822860315,0.6568943,103320.0,103310.0,0.59535975]
[1746822862317,0.6568943,103320.0,103310.0,0.78892275]
[1746822864218,0.2960943,103320.0,103310.0,0.78892275]
[1746822864410,0.6568943,103320.0,103310.0,0.78892275]
[1746822866318,0.6568943,103320.0,103310.0,0.59535975]
[1746822866918,0.6568943,103320.0,103310.0,0.59535986]
[1746822869518,0.78020959,103320.0,103310.0,0.78892286]
[1746822872020,0.78020959,103320.0,103310.0,0.59535986]
[1746822872221,0.78020959,103320.0,103310.0,0.78892286]
[1746822875025,0.78020959,103320.0,103310.0,0.59535986]
[1746822876925,0.78020959,103320.0,103310.0,0.78892286]
[1746822881628,0.78020959,103320.0,103310.0,0.78875129]
[1746822883833,0.78020959,103320.0,103310.0,0.59518829]
[1746822884039,0.78020959,103320.0,103310.0,0.78892286]
[1746822885837,0.78020959,103320.0,103310.0,0.89852947]
[1746822887834,0.78020959,103320.0,103310.0,0.78892286]
[1746822888032,0.78020959,103320.0,103310.0,0.89852947]
[1746822888232,0.78020959,103320.0,103310.0,0.67286647]
[1746822888438,0.78020959,103320.0,103310.0,0.85155434]
[1746822888734,0.78020959,103320.0,103310.0,0.89675855]
[1746822890139,0.6568943,103320.0,103310.0,0.89675855]
[1746822890441,0.6568943,103320.0,103310.0,0.8967585]
[1746822891940,0.12331529,103330.0,103320.0,0.1935443]
[1746822892134,0.12331529,103330.0,103320.0,1.77554168]
[1746822892334,0.12331529,103330.0,103320.0,1.88514829]
[1746822892536,0.3415466,103340.0,103330.0,0.1935255]
[1746822892737,0.3415466,103340.0,103330.0,1.23194288]
[1746822892939,0.3415466,103340.0,103330.0,1.12233627]
[1746822893133,0.3415466,103340.0,103330.0,2.89362826]
[1746822893334,0.3415466,103340.0,103330.0,2.90324048]
[1746822893635,0.3723466,103340.0,103330.0,3.02996843]
[1746822894040,0.3723466,103340.0,103330.0,3.02996869]
[1746822894241,0.3733466,103340.0,103330.0,3.03296869]
[1746822895043,0.3733466,103340.0,103330.0,2.92336208]
[1746822895241,0.3733466,103340.0,103330.0,3.03296869]
[1746822895741,0.3733466,103340.0,103330.0,3.03496869]
[1746822897146,0.2563068,103340.0,103330.0,3.03496869]
[1746822898337,0.2563068,103340.0,103330.0,2.90820869]
[1746822898542,0.2563068,103340.0,103330.0,3.03492869]
[1746822899434,0.2563068,103340.0,103330.0,2.67412869]
[1746822899635,0.36591341,103340.0,103330.0,2.23466436]
[1746822899834,0.39861341,103340.0,103330.0,0.63788237]
[1746822900038,0.39861341,103340.0,103330.0,0.83140787]
[1746822900240,0.75941341,103340.0,103330.0,0.47788237]
[1746822900542,0.75941341,103340.0,103330.0,0.08321]
[1746822900744,0.75941341,103340.0,103330.0,0.09363954]
[1746822902739,0.75941341,103340.0,103330.0,0.02993954]
[1746822904343,0.6498068,103340.0,103330.0,0.02993954]
[1746822904543,0.6498068,103340.0,103330.0,0.06253954]
[1746822905944,0.2890068,103340.0,103330.0,0.06253954]
[1746822906141,0.6498068,103340.0,103330.0,0.06253954]
[1746822906948,0.6498068,103340.0,103330.0,0.14253954]
[1746822910352,0.2890068,103340.0,103330.0,0.14253954]
[1746822910554,0.6498068,103340.0,103330.0,0.14253954]
[1746822911252,0.6498068,103340.0,103330.0,0.30253954]
[1746822912151,0.6498068,103340.0,103330.0,0.14253954]
[1746822913153,0.75941341,103340.0,103330.0,0.30253954]
[1746822914149,0.6498068,103340.0,103330.0,0.30253954]
[1746822914351,0.6498068,103340.0,103330.0,0.37253954]
[1746822915453,0.6498068,103340.0,103330.0,0.06253954]
[1746822915753,0.6498068,103340.0,103330.0,0.16253954]
[1746822916256,0.6498068,103340.0,103330.0,0.32253954]
[1746822917154,0.75941341,103340.0,103330.0,0.32253954]
[1746822918155,0.75941341,103340.0,103330.0,0.30802954]
[1746822918450,0.75941341,103340.0,103330.0,0.33982954]
[1746822919060,0.6498068,103340.0,103330.0,0.33982954]
[1746822919249,0.6498068,103340.0,103330.0,0.42982954]
[1746822920155,0.6498068,103340.0,103330.0,0.58982954]
[1746822921260,0.75941341,103340.0,103330.0,0.42982954]
[1746822922161,0.75941341,103340.0,103330.0,0.58982954]
[1746822922356,0.75941341,103340.0,103330.0,0.36192954]
[1746822922753,0.6498068,103340.0,103330.0,0.36192954]
[1746822922953,0.75941341,103340.0,103330.0,0.36192954]
[1746822923157,0.75941341,103340.0,103330.0,0.20192954]
[1746822924160,0.75941341,103340.0,103330.0,0.36192954]
[1746822925561,0.75941341,103340.0,103330.0,0.3766129]
[1746822925760,0.75941341,103340.0,103330.0,0.36192954]
[1746822926164,0.75941341,103340.0,103330.0,0.20192954]
[1746822926761,0.75941341,103340.0,103330.0,0.21661493]
[1746822926962,0.75941341,103340.0,103330.0,0.20192954]
[1746822927164,0.75941341,103340.0,103330.0,0.18451688]
[1746822928250,0.75941341,103340.0,103330.0,0.12011688]
[1746822928456,1.22902002,103340.0,103330.0,0.01542954]
[1746822928763,1.35554002,103340.0,103330.0,0.01542954]
[1746822929060,1.51554002,103340.0,103330.0,0.01542954]
[1746822930261,1.35554002,103340.0,103330.0,0.17542954]
[1746822932358,1.56390344,103340.0,103330.0,0.17542954]
[1746822934663,1.56390344,103340.0,103330.0,0.165]
[1746822934863,1.34469022,103340.0,103330.0,0.17570246]
[1746822935062,1.56390344,103340.0,103330.0,0.17570246]
[1746822935767,1.50357982,103340.0,103330.0,0.17570246]
[1746822938261,1.35554002,103340.0,103330.0,0.17570246]
[1746822941163,1.35554002,103340.0,103330.0,0.01570246]
[1746822944359,1.35554002,103340.0,103330.0,0.01070246]
[1746822944565,1.35554002,103340.0,103330.0,6e-08]
[1746822945169,1.50341337,103340.0,103330.0,6e-08]
[1746822945871,1.14261337,103340.0,103330.0,6e-08]
[1746822946172,1.86421337,103340.0,103330.0,6e-08]
[1746822947066,2.02421337,103340.0,103330.0,6e-08]
[1746822947373,2.12098537,103340.0,103330.0,6e-08]
[1746822947579,2.02421337,103340.0,103330.0,6e-08]
[1746822948270,2.02421337,103340.0,103310.0,7e-08]
[1746822948271,0.1935443,103320.0,103310.0,7e-08]
[1746822948475,1.71731752,103320.0,103310.0,7e-08]
[1746822948666,1.81431752,103320.0,103310.0,7e-08]
[1746822949274,1.82156752,103320.0,103310.0,7e-08]
[1746822949668,1.82256752,103320.0,103310.0,0.00500007]
[1746822949974,1.82356752,103320.0,103310.0,0.01000007]
[1746822950674,1.82356752,103320.0,103310.0,0.00500007]
[1746822952377,1.82356752,103320.0,103310.0,7e-08]
[1746822956480,1.82356752,103320.0,103310.0,0.03300007]
[1746822957684,1.82356752,103320.0,103310.0,7e-08]
[1746822959082,0.193563,103310.0,103300.0,0.20938803]
[1746822959379,1.08666961,103310.0,103300.0,0.20938803]
[1746822959770,0.1935817,103300.0,103290.0,0.01877335]
[1746822959974,1.46093492,103300.0,103290.0,0.01877335]
[1746822960174,1.35132831,103300.0,103290.0,0.17877335]
[1746822960581,1.35132831,103300.0,103290.0,0.18983443]
[1746822960782,1.36117529,103300.0,103290.0,0.18983443]
[1746822960983,1.36217529,103300.0,103290.0,0.19283443]
[1746822962587,1.36317529,103300.0,103290.0,0.19583443]
[1746822967185,1.36317529,103300.0,103290.0,0.22553443]
[1746822967391,1.36317529,103300.0,103290.0,0.25773443]
[1746822971396,1.36317529,103300.0,103290.0,0.19583443]
[1746822971597,1.4727819,103300.0,103290.0,0.19583443]
[1746822974392,1.4727819,103300.0,103290.0,0.03583443]
[1746822974890,1.4717819,103300.0,103290.0,0.03283443]
[1746822975091,1.4747819,103300.0,103290.0,0.03383443]
[1746822975291,1.4747819,103300.0,103290.0,0.19383443]
[1746822975594,1.4767819,103300.0,103290.0,0.19183443]
[1746822978096,1.4767819,103300.0,103290.0,0.03183443]
[1746822978700,1.4767819,103300.0,103290.0,1e-07]
[1746822979196,1.4767819,103300.0,103290.0,0.1600001]
[1746822980289,1.4767819,103300.0,103290.0,1e-07]
[1746822980488,1.25756868,103300.0,103290.0,1e-07]
[1746822980991,1.4767819,103300.0,103290.0,1e-07]
[1746822981190,1.4767819,103300.0,103290.0,0.1600001]
[1746822983096,1.4767819,103300.0,103290.0,1e-07]
[1746822986200,1.4767819,103300.0,103290.0,0.1600001]
[1746822988099,1.4767819,103300.0,103290.0,1e-07]
[1746822988803,1.36717529,103300.0,103290.0,1e-07]